bitfinex/quotes_BTCUSD_20250624
["timestamp","ask_amount","ask_price","bid_price","bid_amount"]
[1750731197896,0.72215738,105070.0,105060.0,0.22748177]
[1750731198304,0.72215738,105070.0,105060.0,0.21796404]
[1750731198522,1.00712091,105070.0,105060.0,0.22748222]
[1750731198767,1.00712091,105070.0,105060.0,0.24651813]
[1750731198971,0.72215738,105070.0,105060.0,0.23700022]
[1750731199188,0.72215738,105070.0,105060.0,0.24651795]
[1750731200100,0.72215738,105070.0,105060.0,0.02759664]
[1750731200312,0.72215738,105070.0,105060.0,0.03711482]
[1750731200510,0.72215738,105070.0,105060.0,0.04663291]
[1750731200720,0.72215738,105070.0,105060.0,0.23700031]
[1750731201050,0.72215738,105070.0,105060.0,0.24651831]
[1750731201521,0.72215738,105070.0,105060.0,0.23699994]
[1750731201898,0.72195738,105070.0,105060.0,0.24651785]
[1750731202093,0.72195738,105070.0,105060.0,0.24651731]
[1750731202596,0.72195738,105070.0,105060.0,0.23699958]
[1750731202799,0.72195738,105070.0,105060.0,0.22748167]
[1750731203003,0.50175738,105070.0,105060.0,0.22748167]
[1750731203149,0.72187738,105070.0,105060.0,0.20844558]
[1750731203347,0.72187738,105070.0,105060.0,0.00856]
[1750731203552,0.72187738,105070.0,105060.0,0.01807837]
[1750731203780,0.72187738,105070.0,105060.0,0.02759664]
[1750731204154,0.72187738,105070.0,105060.0,0.03711482]
[1750731205113,0.72187738,105070.0,105060.0,0.23700031]
[1750731205871,0.72187738,105070.0,105060.0,0.22748222]
[1750731206600,0.72187738,105070.0,105060.0,0.23700031]
[1750731206808,1.00684091,105070.0,105060.0,0.23700031]
[1750731207022,0.67216271,105070.0,105060.0,0.24651813]
[1750731207660,0.002,105070.0,105060.0,0.56278102]
[1750731207876,0.05228,105070.0,105060.0,0.56278102]
[1750731209363,0.05228,105070.0,105060.0,0.27781749]
[1750731211224,0.05228,105070.0,105060.0,0.57401749]
[1750731212055,0.05028,105070.0,105060.0,0.57401749]
[1750731214792,0.05028,105070.0,105060.0,0.85898102]
[1750731216077,0.002,105070.0,105060.0,0.85898102]
[1750731216233,0.05028,105070.0,105060.0,0.66951935]
[1750731216482,0.05028,105070.0,105060.0,0.95448288]
[1750731217432,0.04928,105070.0,105060.0,0.94748288]
[1750731217672,0.05028,105070.0,105060.0,0.95348288]
[1750731220294,0.04928,105070.0,105060.0,0.95192288]
[1750731220660,0.04928,105070.0,105060.0,0.95292288]
[1750731222041,0.001,105070.0,105060.0,0.95292288]
[1750731222664,0.001,105070.0,105060.0,1.23788641]
[1750731222874,0.001,105070.0,105060.0,1.23817174]
[1750731223496,0.001,105070.0,105060.0,1.62817174]
[1750731223705,0.09226085,105110.0,105100.0,0.21883809]
[1750731223706,0.25966085,105110.0,105100.0,0.21883809]
[1750731223949,0.25966085,105110.0,105100.0,0.80000162]
[1750731223950,0.04838,105110.0,105100.0,0.80000162]
[1750731224361,0.04838,105110.0,105100.0,0.62950348]
[1750731224566,0.0001,105110.0,105100.0,0.66796047]
[1750731224992,0.0001,105110.0,105100.0,0.83532047]
[1750731225202,0.0001,105110.0,105100.0,0.83832047]
[1750731225404,0.0001,105110.0,105100.0,0.84132047]
[1750731225606,0.0001,105110.0,105100.0,0.83532047]
[1750731226016,0.0011,105110.0,105100.0,0.83932047]
[1750731226217,0.0011,105110.0,105100.0,1.4758058]
[1750731226422,0.0011,105110.0,105100.0,1.5258058]
[1750731226827,0.00118744,105110.0,105100.0,1.5258058]
[1750731227034,0.00118744,105110.0,105100.0,1.5278058]
[1750731227459,0.00118744,105110.0,105100.0,1.4778058]
[1750731227672,0.00018744,105110.0,105100.0,1.5238058]
[1750731227898,0.00118744,105110.0,105100.0,1.5318058]
[1750731228338,0.00118744,105110.0,105100.0,1.57458227]
[1750731228535,0.00118744,105110.0,105100.0,0.60830348]
[1750731228849,0.00118744,105110.0,105100.0,0.22783809]
[1750731229262,0.01748744,105110.0,105100.0,0.39499809]
[1750731229614,0.36659097,105110.0,105100.0,0.3062]
[1750731229732,0.36659097,105110.0,105100.0,0.31371474]
[1750731229939,0.08162744,105110.0,105100.0,0.32322939]
[1750731230135,0.08162744,105110.0,105100.0,0.31371474]
[1750731230386,0.03338744,105110.0,105100.0,0.31371474]
[1750731230557,0.03238744,105110.0,105100.0,0.30571474]
[1750731230759,0.03338744,105110.0,105100.0,0.53055301]
[1750731230998,0.08162744,105110.0,105100.0,0.54006712]
[1750731231197,0.08262744,105110.0,105100.0,0.55006712]
[1750731231438,0.08162744,105110.0,105100.0,0.54406712]
[1750731231619,0.08062744,105110.0,105100.0,0.53406712]
[1750731231828,0.08062744,105110.0,105100.0,0.54006712]
[1750731232268,0.06472744,105110.0,105100.0,0.54006712]
[1750731233369,0.01648744,105110.0,105100.0,0.54006712]
[1750731233551,0.04842744,105110.0,105100.0,0.54006712]
[1750731235346,0.04842744,105110.0,105100.0,0.70662712]
[1750731236099,0.04842744,105110.0,105100.0,0.41042712]
[1750731236514,0.04842744,105110.0,105100.0,0.85528485]
[1750731236894,0.04842744,105110.0,105100.0,0.33936898]
[1750731237053,0.04842744,105110.0,105100.0,0.78422671]
[1750731239695,0.04842744,105110.0,105100.0,0.33936898]
[1750731240726,0.04842744,105110.0,105100.0,0.63556898]
[1750731241309,1.04842744,105110.0,105100.0,0.63556898]
[1750731243151,1.06392744,105110.0,105100.0,0.80140898]
[1750731243650,1.04842744,105110.0,105100.0,0.80140898]
[1750731244270,1.04714744,105110.0,105100.0,0.80140898]
[1750731245780,1.04714744,105110.0,105100.0,1.24626671]
[1750731246325,1.04714744,105110.0,105100.0,0.80140898]
[1750731250422,1.04714744,105110.0,105100.0,1.08600109]
[1750731251170,1.0,105110.0,105100.0,1.08600109]
[1750731252163,1.0,105110.0,105100.0,1.11910109]
[1750731253589,0.99990486,105110.0,105100.0,1.11910109]
[1750731253994,0.99990486,105110.0,105100.0,0.83450898]
[1750731254196,1.03270486,105110.0,105100.0,0.53055283]
[1750731255207,1.31729697,105110.0,105100.0,0.50200969]
[1750731255343,1.31729697,105110.0,105100.0,0.51152416]
[1750731255521,1.31729697,105110.0,105100.0,0.51152425]
[1750731255927,1.31729697,105110.0,105100.0,0.52103872]
[1750731256166,1.31729697,105110.0,105100.0,0.51152425]
[1750731256378,1.31729697,105110.0,105100.0,0.51152434]
[1750731256585,1.31729697,105110.0,105100.0,0.33074395]
[1750731256790,1.31729697,105110.0,105100.0,0.34025842]
[1750731256963,1.31729697,105110.0,105100.0,0.53055337]
[1750731257166,1.31729697,105110.0,105100.0,0.54006712]
[1750731257502,1.03270486,105110.0,105100.0,0.54006721]
[1750731257703,1.03270486,105110.0,105100.0,0.54006667]
[1750731258412,1.03270486,105110.0,105100.0,0.52103836]
[1750731258617,1.03270486,105110.0,105100.0,0.24386676]
[1750731260840,1.01620486,105110.0,105100.0,0.24386676]
[1750731261050,1.06264486,105110.0,105100.0,0.24386676]
[1750731261778,1.06264486,105110.0,105100.0,0.52845887]
[1750731262412,1.07884486,105110.0,105100.0,0.24386676]
[1750731264465,1.07884486,105110.0,105100.0,0.54006676]
[1750731270805,1.36343697,105110.0,105100.0,0.52103836]
[1750731271157,1.36343697,105110.0,105100.0,0.31171465]
[1750731271379,1.36343697,105110.0,105100.0,0.32122921]
[1750731271659,1.36343697,105110.0,105100.0,0.53055301]
[1750731272114,1.36343697,105110.0,105100.0,0.5400673]
[1750731272250,1.36343697,105110.0,105100.0,0.53055265]
[1750731272651,1.36343697,105110.0,105100.0,0.54006685]
[1750731273053,1.36343697,105110.0,105100.0,0.5400664]
[1750731274539,1.36343697,105110.0,105100.0,0.53055229]
[1750731275191,1.36343697,105110.0,105100.0,0.52103809]
[1750731275390,1.36343697,105110.0,105100.0,0.51152416]
[1750731275855,1.36343697,105110.0,105100.0,0.52103854]
[1750731276598,1.36343697,105110.0,105100.0,0.51152416]
[1750731276814,1.36343697,105110.0,105100.0,0.52103854]
[1750731277239,1.36343697,105110.0,105100.0,0.51152416]
[1750731277628,1.36343697,105110.0,105100.0,0.51152434]
[1750731278228,1.36343697,105110.0,105100.0,0.3022]
[1750731278229,1.76769249,105110.0,105100.0,0.3022]
[1750731279178,1.86319435,105110.0,105100.0,0.3022]
[1750731279628,2.02891435,105110.0,105100.0,0.3022]
[1750731279870,2.02887435,105110.0,105100.0,0.2992]
[1750731280096,1.74428224,105110.0,105100.0,0.2992]
[1750731280299,1.74428224,105110.0,105100.0,0.3002]
[1750731280300,2.02887435,105110.0,105100.0,0.3002]
[1750731280703,2.02887435,105110.0,105100.0,0.2972]
[1750731282178,2.02887435,105110.0,105100.0,0.001]
[1750731283735,1.64878038,105110.0,105100.0,0.20080969]
[1750731283936,1.93337249,105110.0,105100.0,0.21032425]
[1750731284559,1.37240486,105110.0,105100.0,0.22935292]
[1750731284833,1.56832486,105110.0,105100.0,0.23886703]
[1750731284963,0.99990486,105110.0,105100.0,0.23886703]
[1750731285169,1.04630486,105110.0,105100.0,0.23886703]
[1750731285566,0.99990486,105110.0,105100.0,0.23886703]
[1750731285772,0.99990486,105110.0,105100.0,0.52345914]
[1750731286582,0.99990486,105110.0,105100.0,0.55485914]
[1750731288060,0.99990486,105110.0,105100.0,0.85105914]
[1750731288915,0.99990486,105110.0,105100.0,0.946561]
[1750731291774,0.99990486,105110.0,105100.0,1.44194633]
[1750731291933,0.99990486,105110.0,105100.0,1.28684633]
[1750731292585,0.99990486,105110.0,105100.0,1.33684633]
[1750731293730,0.99990486,105110.0,105100.0,1.33584633]
[1750731293931,1.00090486,105110.0,105100.0,1.33984633]
[1750731294141,1.00090486,105110.0,105100.0,1.34484633]
[1750731294326,1.00090486,105110.0,105100.0,1.33984633]
[1750731294524,0.99990486,105110.0,105100.0,1.33584633]
[1750731294731,1.00090486,105110.0,105100.0,1.34484633]
[1750731294995,1.00090486,105110.0,105100.0,1.06025422]
[1750731295203,1.00090486,105110.0,105100.0,1.34484633]
[1750731295477,1.00190486,105110.0,105100.0,1.35184633]
[1750731295702,1.00190486,105110.0,105100.0,1.38044433]
[1750731296826,1.00190486,105110.0,105100.0,0.67416689]
[1750731297030,1.00190486,105110.0,105100.0,0.81116889]
[1750731297235,1.01720486,105110.0,105100.0,0.81116889]
[1750731298878,1.01720486,105110.0,105100.0,0.64556889]
[1750731299110,1.01720486,105110.0,105100.0,0.55006703]
[1750731299111,1.31759697,105110.0,105100.0,0.55006703]
[1750731299341,1.07940486,105110.0,105100.0,0.55006703]
[1750731300292,1.07740486,105110.0,105100.0,0.53406703]
[1750731300519,1.07940486,105110.0,105100.0,0.54406703]
[1750731301263,1.07940486,105110.0,105100.0,0.50600969]
[1750731301502,1.36399697,105110.0,105100.0,0.51552425]
[1750731301720,1.07940486,105110.0,105100.0,0.70011274]
[1750731301958,1.07940486,105110.0,105100.0,0.53455274]
[1750731302185,1.07940486,105110.0,105100.0,0.70011274]
[1750731302414,1.06360486,105110.0,105100.0,0.98470485]
[1750731303241,1.06360486,105110.0,105100.0,0.70011274]
[1750731304020,1.07950486,105110.0,105100.0,0.70011274]
[1750731306739,1.04830486,105110.0,105100.0,1.08020671]
[1750731306922,1.00190486,105110.0,105100.0,1.08020671]
[1750731308067,1.00190486,105110.0,105100.0,1.11240671]
[1750731308279,1.00190486,105110.0,105100.0,1.09580671]
[1750731309475,1.00190486,105110.0,105100.0,1.08020671]
[1750731310246,1.00190486,105110.0,105100.0,0.91464671]
[1750731310447,1.00190486,105110.0,105100.0,1.08012671]
[1750731310653,1.00190486,105110.0,105100.0,0.7955346]
[1750731312078,1.00190486,105110.0,105100.0,1.08012671]
[1750731312698,1.00190486,105110.0,105100.0,1.09542671]
[1750731312897,1.00190486,105110.0,105100.0,1.11142671]
[1750731313497,1.00190486,105110.0,105100.0,1.09542671]
[1750731313724,1.00190486,105110.0,105100.0,1.08012671]
[1750731315310,1.00190486,105110.0,105100.0,1.07764671]
[1750731315508,1.00190486,105110.0,105100.0,1.10954671]
[1750731316246,1.00190486,105110.0,105100.0,1.10983204]
[1750731317724,1.00190486,105110.0,105100.0,0.52903993]
[1750731317725,0.70570486,105110.0,105100.0,0.52903993]
[1750731317887,0.70570486,105110.0,105100.0,0.81363204]
[1750731323183,0.70570486,105110.0,105100.0,0.61625204]
[1750731323425,0.70570486,105110.0,105100.0,0.49701993]
[1750731323598,0.72220486,105110.0,105100.0,1.07781204]
[1750731323804,0.73790486,105110.0,105100.0,0.7929346]
[1750731325262,0.73790486,105110.0,105100.0,0.6275746]
[1750731325705,0.73790486,105110.0,105100.0,0.69743274]
[1750731326586,0.78414486,105110.0,105100.0,0.53207274]
[1750731326800,0.78414486,105110.0,105100.0,0.69739274]
[1750731327291,0.78414486,105110.0,105100.0,0.53207274]
[1750731327463,0.78414486,105110.0,105100.0,0.69739274]
[1750731327902,0.78414486,105110.0,105100.0,0.53207274]
[1750731328255,0.78414486,105110.0,105100.0,0.53207283]
[1750731328659,0.78414486,105110.0,105100.0,0.54158694]
[1750731329181,0.78414486,105110.0,105100.0,0.53207283]
[1750731329314,0.78414486,105110.0,105100.0,0.54158694]
[1750731329518,0.78414486,105110.0,105100.0,0.51304425]
[1750731329718,1.06873697,105110.0,105100.0,0.52255863]
[1750731330375,0.78414486,105110.0,105100.0,0.53207292]
[1750731331169,0.78414486,105110.0,105100.0,0.54158649]
[1750731331800,0.78414486,105110.0,105100.0,0.53207238]
[1750731332111,0.78414486,105110.0,105100.0,0.54158649]
[1750731338234,0.78414486,105110.0,105100.0,0.50352969]
[1750731338340,1.06873697,105110.0,105100.0,0.47144]
[1750731339261,0.78414486,105110.0,105100.0,0.5060096]
[1750731339489,0.78414486,105110.0,105100.0,0.51552407]
[1750731339643,0.78414486,105110.0,105100.0,0.52503836]
[1750731339846,0.78414486,105110.0,105100.0,0.52503845]
[1750731340279,0.78414486,105110.0,105100.0,0.53455274]
[1750731340482,0.78414486,105110.0,105100.0,0.51552407]
[1750731340736,0.78414486,105110.0,105100.0,0.3062]
[1750731340737,1.06873697,105110.0,105100.0,0.3062]
[1750731341256,1.07806814,105110.0,105100.0,0.3062]
[1750731341465,1.06873697,105110.0,105100.0,0.31571456]
[1750731341691,1.06673697,105110.0,105100.0,0.30571465]
[1750731341901,1.06673697,105110.0,105100.0,0.31622921]
[1750731342109,1.06673697,105110.0,105100.0,0.32674368]
[1750731342809,1.06673697,105110.0,105100.0,0.31722921]
[1750731343416,1.06673697,105110.0,105100.0,0.2982]
[1750731344825,1.23193697,105110.0,105100.0,0.30771474]
[1750731345047,1.26008603,105110.0,105100.0,0.31722939]
[1750731345175,1.26008603,105110.0,105100.0,0.30771474]
[1750731345379,1.26008603,105110.0,105100.0,0.3172293]
[1750731345610,1.26008603,105110.0,105100.0,0.2982]
[1750731345812,1.26008603,105110.0,105100.0,0.30771465]
[1750731346010,1.26008603,105110.0,105100.0,0.51703863]
[1750731346414,1.26008603,105110.0,105100.0,0.52655301]
[1750731346642,1.26008603,105110.0,105100.0,0.51703863]
[1750731347294,1.26008603,105110.0,105100.0,0.52655301]
[1750731347474,1.26008603,105110.0,105100.0,0.50752416]
[1750731348265,1.26008603,105110.0,105100.0,0.52655301]
[1750731348434,1.26008603,105110.0,105100.0,0.5360673]
[1750731348639,1.26008603,105110.0,105100.0,0.52655301]
[1750731348835,1.26008603,105110.0,105100.0,0.5360673]
[1750731349329,1.26008603,105110.0,105100.0,0.52655301]
[1750731349961,1.26008603,105110.0,105100.0,0.5360673]
[1750731350166,1.26008603,105110.0,105100.0,0.51703863]
[1750731350384,1.26008603,105110.0,105100.0,0.30771474]
[1750731350586,1.26008603,105110.0,105100.0,0.2982]
[1750731350764,1.26008603,105110.0,105100.0,0.30771474]
[1750731350973,1.60008603,105110.0,105100.0,0.2982]
[1750731351271,1.75984341,105110.0,105100.0,0.2982]
[1750731352599,1.77758653,105110.0,105100.0,0.2982]
[1750731353019,1.75984341,105110.0,105100.0,0.2972]
[1750731353395,1.76084341,105110.0,105100.0,0.2972]
[1750731353597,1.77858659,105110.0,105100.0,0.2972]
[1750731354003,1.77858659,105110.0,105100.0,0.2962]
[1750731354610,1.76060341,105110.0,105100.0,0.2962]
[1750731356139,0.0323,105100.0,105090.0,0.2962]
[1750731356347,0.48197211,105100.0,105090.0,0.2962]
[1750731357577,0.48197211,105100.0,105090.0,0.2982]
[1750731357988,0.98172949,105100.0,105090.0,0.2982]
[1750731358804,0.98172949,105100.0,105090.0,0.2992]
[1750731359892,1.2663216,105100.0,105090.0,0.003]
[1750731360106,1.2663216,105100.0,105090.0,0.002]
[1750731360317,1.2673216,105100.0,105090.0,0.002]
[1750731360598,0.0313,105080.0,105070.0,0.30571746]
[1750731360833,0.52705211,105080.0,105070.0,0.51510113]
[1750731361054,0.52705211,105080.0,105070.0,0.52461814]
[1750731361270,0.52705211,105080.0,105070.0,0.50558403]
[1750731361725,0.52705211,105080.0,105070.0,0.50558412]
[1750731361919,0.52805211,105080.0,105070.0,0.30871746]
[1750731362139,0.52805211,105080.0,105070.0,0.32223483]
[1750731362568,0.52805211,105080.0,105070.0,0.32223474]
[1750731362850,0.52805211,105080.0,105070.0,0.31271746]
[1750731363085,0.52805211,105080.0,105070.0,0.32223483]
[1750731363297,0.52805211,105080.0,105070.0,0.31271746]
[1750731363517,0.52805211,105080.0,105070.0,0.32223483]
[1750731363713,0.52805211,105080.0,105070.0,0.31271746]
[1750731363941,0.52805211,105080.0,105070.0,0.3032]
[1750731363942,0.53750131,105080.0,105070.0,0.3032]
[1750731364903,1.03725869,105080.0,105070.0,0.007]
[1750731365781,0.82609869,105080.0,105070.0,0.003]
[1750731366020,1.03701869,105080.0,105070.0,0.003]
[1750731366237,1.03801869,105080.0,105070.0,0.003]
[1750731366913,0.015,105060.0,105050.0,0.58148163]
[1750731367342,0.015,105060.0,105050.0,0.58148208]
[1750731367553,0.015,105060.0,105050.0,0.60051963]
[1750731368271,0.01604625,105060.0,105050.0,0.52885878]
[1750731368469,0.01604625,105060.0,105050.0,0.50030232]
[1750731368675,0.01604625,105060.0,105050.0,0.51934005]
[1750731368853,0.01604625,105060.0,105050.0,0.52885878]
[1750731369087,0.01604625,105060.0,105050.0,0.54237742]
[1750731369234,0.01604625,105060.0,105050.0,0.51382132]
[1750731369434,0.03234625,105060.0,105050.0,0.51382132]
[1750731369656,0.03234625,105060.0,105050.0,0.53285887]
[1750731369876,0.03234625,105060.0,105050.0,0.52334014]
[1750731370028,0.03234625,105060.0,105050.0,0.53285887]
[1750731370228,0.03234625,105060.0,105050.0,0.54237751]
[1750731370687,0.03234625,105060.0,105050.0,0.53285887]
[1750731371293,0.03234625,105060.0,105050.0,0.52334023]
[1750731371778,0.03234625,105060.0,105050.0,0.53285905]
[1750731372333,0.03234625,105060.0,105050.0,0.54237778]
[1750731372767,0.01604625,105060.0,105050.0,0.54237778]
[1750731373181,0.76645047,105060.0,105050.0,0.0082]
[1750731373368,0.19726625,105060.0,105050.0,0.0082]
[1750731373569,0.19726625,105060.0,105050.0,0.19858553]
[1750731373570,0.48185836,105060.0,105050.0,0.19858553]
[1750731373781,0.35390614,105060.0,105050.0,0.20810471]
[1750731373982,0.35390614,105060.0,105050.0,0.21762371]
[1750731375030,0.35390614,105060.0,105050.0,0.22714262]
[1750731375226,0.35390614,105060.0,105050.0,0.21762371]
[1750731375402,0.35390614,105060.0,105050.0,0.20810471]
[1750731375626,0.35390614,105060.0,105050.0,0.2271428]
[1750731375859,0.35390614,105060.0,105050.0,0.23666171]
[1750731376060,0.35390614,105060.0,105050.0,0.24618053]
[1750731376584,0.35390614,105060.0,105050.0,0.23666171]
[1750731376957,0.35390614,105060.0,105050.0,0.24618053]
[1750731377181,0.35390614,105060.0,105050.0,0.24618008]
[1750731377499,0.33890614,105060.0,105050.0,0.24617963]
[1750731377859,0.12806614,105060.0,105050.0,0.24617963]
[1750731378057,0.17398614,105060.0,105050.0,0.24617963]
[1750731378784,0.17398614,105060.0,105050.0,0.6585736]
[1750731380758,0.12806614,105060.0,105050.0,0.6585736]
[1750731382350,0.12806614,105060.0,105050.0,0.95505893]
[1750731383451,0.12806614,105060.0,105050.0,0.95105893]
[1750731383656,0.12806614,105060.0,105050.0,0.95905893]
[1750731383867,0.12906614,105060.0,105050.0,0.95905893]
[1750731384484,0.12806614,105060.0,105050.0,1.29505893]
[1750731384687,0.12906614,105060.0,105050.0,1.30205893]
[1750731388636,0.04592,105080.0,105070.0,0.16713386]
[1750731388841,4.63e-05,105080.0,105070.0,0.48153631]
[1750731389050,0.0459663,105080.0,105070.0,0.79692842]
[1750731390067,0.0459663,105080.0,105070.0,0.79792842]
[1750731390624,0.0459663,105080.0,105070.0,0.80092842]
[1750731391454,0.0459663,105080.0,105070.0,0.81039199]
[1750731396368,0.0459663,105080.0,105070.0,0.52579988]
[1750731396557,0.0459663,105080.0,105070.0,0.81039199]
[1750731397822,0.0459663,105080.0,105070.0,0.79499199]
[1750731398022,0.0459663,105080.0,105070.0,0.49499988]
[1750731398217,0.0612663,105080.0,105070.0,0.49499988]
[1750731398418,0.36085841,105080.0,105070.0,0.17113386]
[1750731398720,0.58979393,105080.0,105070.0,0.17113386]
[1750731398869,0.58979393,105080.0,105070.0,0.004]
[1750731398870,1.02529579,105080.0,105070.0,0.004]
[1750731399536,1.02529579,105080.0,105050.0,0.36723821]
[1750731399537,0.34,105070.0,105050.0,0.36723821]
[1750731399817,0.031,105060.0,105050.0,0.36723821]
[1750731400027,0.52998678,105060.0,105050.0,0.16733386]
[1750731400367,0.52998678,105060.0,105050.0,0.17685313]
[1750731400769,0.52998678,105060.0,105050.0,0.16733386]
[1750731401896,0.52998678,105060.0,105050.0,0.17685313]
[1750731402102,0.52998678,105060.0,105050.0,0.18937222]
[1750731402549,0.52998678,105060.0,105050.0,0.19889122]
[1750731403110,0.52998678,105060.0,105050.0,0.18937222]
[1750731403986,0.24539467,105060.0,105050.0,0.17985313]
[1750731404309,0.24539467,105060.0,105050.0,0.19137222]
[1750731404512,0.52998678,105060.0,105050.0,0.38175775]
[1750731404707,0.24539467,105060.0,105050.0,0.4007953]
[1750731404932,0.19568,105060.0,105050.0,0.4007953]
[1750731405128,0.24539467,105060.0,105050.0,0.4007953]
[1750731406389,0.031,105060.0,105050.0,0.4007953]
[1750731407287,0.08071467,105060.0,105050.0,0.4007953]
[1750731407655,0.031,105060.0,105050.0,0.4007953]
[1750731408286,0.08071467,105060.0,105050.0,0.4007953]
[1750731408788,0.08071467,105060.0,105050.0,0.40079539]
[1750731408939,0.08071467,105060.0,105050.0,0.41031403]
[1750731409332,0.08071467,105060.0,105050.0,0.39127657]
[1750731409532,0.08071467,105060.0,105050.0,0.4007953]
[1750731409729,0.08071467,105060.0,105050.0,0.41031394]
[1750731410192,1.3103016,105060.0,105050.0,0.0052]
[1750731410432,0.74111738,105060.0,105050.0,0.0052]
[1750731411089,0.74111738,105060.0,105050.0,0.0032]
[1750731411532,0.63107467,105060.0,105050.0,0.0032]
[1750731412090,0.031,105060.0,105050.0,0.21914217]
[1750731412291,0.07676,105060.0,105050.0,0.50373428]
[1750731412533,0.07676,105060.0,105050.0,0.22014235]
[1750731412953,0.07676,105060.0,105050.0,0.23917972]
[1750731413372,0.07676,105060.0,105050.0,0.22966108]
[1750731413648,0.07676,105060.0,105050.0,0.23917972]
[1750731413863,0.07676,105060.0,105050.0,0.22966108]
[1750731414289,0.07676,105060.0,105050.0,0.21062353]
[1750731414499,0.07676,105060.0,105050.0,0.21062362]
[1750731414776,0.07676,105060.0,105050.0,0.22966135]
[1750731414990,0.07676,105060.0,105050.0,0.23917999]
[1750731415136,0.07676,105060.0,105050.0,0.40631385]
[1750731415336,0.07676,105060.0,105050.0,0.39679521]
[1750731415912,0.07676,105060.0,105050.0,0.37775748]
[1750731416390,0.07676,105060.0,105050.0,0.38727639]
[1750731416608,0.07676,105060.0,105050.0,0.39679512]
[1750731416824,0.07676,105060.0,105050.0,0.40631394]
[1750731416960,0.07676,105060.0,105050.0,0.39679521]
[1750731417164,0.07676,105060.0,105050.0,0.40631394]
[1750731417583,0.07676,105060.0,105050.0,0.39679521]
[1750731418497,0.07676,105060.0,105050.0,0.40631394]
[1750731418667,0.07676,105060.0,105050.0,0.39679521]
[1750731418911,0.07676,105060.0,105050.0,0.38727639]
[1750731419120,0.07676,105060.0,105050.0,0.37775748]
[1750731419333,0.07676,105060.0,105050.0,0.36823848]
[1750731419725,0.07676,105060.0,105050.0,0.37775748]
[1750731419935,0.07676,105060.0,105050.0,0.36823848]
[1750731420134,0.07676,105060.0,105050.0,0.37775748]
[1750731420798,0.07676,105060.0,105050.0,0.36823848]
[1750731421179,0.07676,105060.0,105050.0,0.35871939]
[1750731421381,0.36135211,105060.0,105050.0,0.16833386]
[1750731421512,0.41106678,105060.0,105050.0,0.16833386]
[1750731422135,1.4355416,105060.0,105050.0,0.0012]
[1750731422539,1.4641676,105060.0,105050.0,0.0012]
[1750731422936,1.4641676,105060.0,105050.0,0.0002]
[1750731423345,1.4671676,105060.0,105050.0,0.0002]
[1750731423967,1.4721676,105060.0,105050.0,0.0002]
[1750731425226,1.39650675,105060.0,105050.0,0.0002]
[1750731426482,1.4110476,105060.0,105050.0,0.0002]
[1750731426614,1.43374431,105060.0,105050.0,0.0002]
[1750731428182,1.59806431,105060.0,105050.0,0.0002]
[1750731429602,1.1033922,105060.0,105050.0,0.0002]
[1750731429759,1.3134722,105060.0,105050.0,0.0002]
[1750731429987,1.29077549,105060.0,105050.0,0.0002]
[1750731430394,1.08069549,105060.0,105050.0,0.0002]
[1750731430591,1.29077549,105060.0,105050.0,0.0002]
[1750731431687,1.28577549,105060.0,105050.0,0.0002]
[1750731432649,1.5703676,105060.0,105050.0,0.0002]
[1750731432817,1.5673676,105060.0,105050.0,0.0002]
[1750731433188,1.5713676,105060.0,105050.0,0.0002]
[1750731433388,1.28677549,105060.0,105050.0,0.0002]
[1750731433593,1.5713676,105060.0,105050.0,0.0002]
[1750731437579,1.68954572,105060.0,105050.0,0.0002]
[1750731437988,1.70728512,105060.0,105050.0,0.0002]
[1750731438200,1.62133272,105060.0,105050.0,0.0002]
[1750731438406,1.66575042,105060.0,105050.0,0.0002]
[1750731438847,6.71575042,105060.0,105050.0,0.0002]
[1750731439251,6.74394614,105060.0,105050.0,0.0002]
[1750731439462,5.45425552,105050.0,105040.0,0.000529]
[1750731439664,6.24623784,105050.0,105040.0,0.000529]
[1750731439870,6.30174078,105050.0,105040.0,0.000529]
[1750731440703,6.00763021,105050.0,105040.0,0.000529]
[1750731440910,5.9793812,105050.0,105040.0,0.000529]
[1750731441407,5.9833812,105050.0,105040.0,0.000529]
[1750731442181,5.9883812,105050.0,105040.0,0.000529]
[1750731442642,5.9833812,105050.0,105040.0,0.000529]
[1750731442841,5.9893812,105050.0,105040.0,0.001529]
[1750731444615,5.9893812,105050.0,105020.0,0.0002]
[1750731444616,0.43495552,105030.0,105020.0,0.0002]
[1750731444823,1.3096016,105030.0,105020.0,0.0002]
[1750731445980,1.3106016,105030.0,105020.0,0.00466089]
[1750731446598,1.3203723,105030.0,105020.0,0.00466089]
[1750731446798,1.3213723,105030.0,105020.0,0.00766089]
[1750731447186,1.3213323,105030.0,105020.0,0.00766089]
[1750731448263,1.37265271,105030.0,105020.0,0.00766089]
[1750731448896,1.16273271,105030.0,105020.0,0.00766089]
[1750731449108,1.37265271,105030.0,105020.0,0.00766089]
[1750731449319,1.16273271,105030.0,105020.0,0.00766089]
[1750731449527,1.37265271,105030.0,105020.0,0.00766089]
[1750731451061,1.16273271,105030.0,105020.0,0.00766089]
[1750731451340,1.37265271,105030.0,105020.0,0.00766089]
[1750731453190,1.37265271,105030.0,105020.0,0.00735962]
[1750731453603,1.16273271,105030.0,105020.0,0.00735962]
[1750731453852,1.37265271,105030.0,105020.0,0.00735962]
[1750731454488,1.16273271,105030.0,105020.0,0.00735962]
[1750731454663,1.37265271,105030.0,105020.0,0.00735962]
[1750731455197,1.0880606,105030.0,105020.0,0.00735962]
[1750731455424,1.03467519,105030.0,105020.0,0.00735962]
[1750731455897,0.69467519,105030.0,105020.0,0.00735962]
[1750731456147,1.03467519,105030.0,105020.0,0.00735962]
[1750731456384,1.05007519,105030.0,105020.0,0.00735962]
[1750731456762,1.02144019,105030.0,105020.0,0.00735962]
[1750731458445,1.02124019,105030.0,105020.0,0.00735962]
[1750731460315,1.03634019,105030.0,105020.0,0.00735962]
[1750731460775,1.3209323,105030.0,105020.0,0.00735962]
[1750731461922,1.4069505,105030.0,105020.0,0.00735962]
[1750731462162,1.34361516,105030.0,105020.0,0.00735962]
[1750731464214,1.36134694,105030.0,105020.0,0.00735962]
[1750731464445,1.34361516,105030.0,105020.0,0.00735962]
[1750731464688,1.36134794,105030.0,105020.0,0.00735962]
[1750731465376,1.34361516,105030.0,105020.0,0.00735962]
[1750731465834,1.36136507,105030.0,105020.0,0.00735962]
[1750731466816,1.3613675,105030.0,105020.0,0.00735962]
[1750731467286,1.3613275,105030.0,105020.0,0.00735962]
[1750731467502,1.36132795,105030.0,105020.0,0.00735962]
[1750731467727,1.34357516,105030.0,105020.0,0.00735962]
[1750731467927,1.36133848,105030.0,105020.0,0.00735962]
[1750731468192,1.36799967,105030.0,105020.0,0.00735962]
[1750731468699,0.79881553,105030.0,105020.0,0.00735962]
[1750731468962,1.36133848,105030.0,105020.0,0.00735962]
[1750731469879,1.36800024,105030.0,105020.0,0.00735962]
[1750731470193,1.36133848,105030.0,105020.0,0.00735962]